Workbook

Sheet Introduction
B1: An Introduction to Simulation
B3: Modern spreadsheet programs give us the ability to keep uncertainty "alive" in our
B4: calculations. This, in turn, allows us to deal with problems which are analytically
B5: intractable (as well as problems where we can't personally discover an analytical
B6: approach).
B8: For example, imagine that you're playing a dice game, where you roll five dice. You will
B9: win the game if, on your next roll, the highest number showing on any of the dice is a 5.
B10: What are your chances of winning?
B12: Solving this problem directly takes some careful thought: There are many different cases
B13: to consider. You might roll precisely one 5, and four lower numbers. Or two 5s, or three,
B14: or four, or five. If you roll precisely three 5s, they might appear on the first three dice, or
B15: the first, second, and fourth, or some other three of the five. And so on.
B17: This problem does yield to a clever analytical approach: The cases in which you will win | K17: There are two useful ways to recast a
B18: are precisely those for which your highest die shows a 5 or less, if you subtract off all | K18: problem which focuses on a specific
B19: cases in which the highest die shows a 4 or less. Hence, the probability that you'll win | K19: quantity (in this case, the highest number
B20: can be computed: | K20: showing across five dice), and seeks the
K21: likelihood that the quantity takes a specific
B22: =5^5 -> 3125 | C22: cases where all five dice show 5 or less | H22: =showformula(B22) -> =5^5 | K22: value (in this case, 5):
B23: =4^5 -> 1024 | C23: cases where all five dice show 4 or less | H23: =showformula(B23) -> =4^5
B24: =B22-B23 -> 2101 | C24: cases where you win (the highest die shows a 5) | H24: =B22-B23 | K24: Pr(value is 5)
K25: = Pr(value is ≤ 5) - Pr(value is ≤ 4)
B26: =6^5 -> 7776 | C26: all possible rolls | H26: =6^5 | K26: = Pr(value is ≥ 5) - Pr(value is ≥ 6)
B28: =B24/B26 -> 0.2701903292 | C28: Pr(you win) | H28: =B24/B26 | K28: In this problem, it is the first recasting
K29: which helps us.
B30: But how might you have solved the problem, had this approach not popped into your
B31: mind?

Sheet Random numbers
B1: Generating Random Numbers
B3: Excel has two built-in random-number-generating functions: =RAND() and
B4: =RANDBETWEEN(j,k).
B6: =RAND() takes a random value, equally likely to be anywhere between 0 and 1. Each
B7: time the spreadsheet is recalculated, a new random value is drawn.
B9: Pressing the [F9] key in Excel forces a recalculation of your spreadsheet.
B11: =RAND() -> 0.8938013837 | C11: =RAND(). Press [F9] a few times, and watch this change.
B13: =RANDBETWEEN(j,k) takes a random value, equally likely to be any whole number
B14: between j and k.
B16: 1 | C16: j
B17: 6 | C17: k
B18: =RANDBETWEEN(B16,B17) -> 6 | C18: =RANDBETWEEN(j,k)
B20: Press [F9] a few more times to convince yourself that the cell above is perfectly
B21: simulating the roll of a single six-sided die!

Sheet Rolling dice
B1: Rolling Five Dice
B3: The values of =RAND() and =RANDBETWEEN(j,k) vary independently from one
B4: recalculation to the next, and also across cells. Therefore, five uses of the
B5: =RANDBETWEEN(1,6) function let us perfectly simulate the roll of five dice:
B7: =RANDBETWEEN(1,6) -> 2 | C7: die 1 | D7: =showformula(B7) -> =RANDBETWEEN(1,6)
B8: =RANDBETWEEN(1,6) -> 2 | C8: die 2 | D8: =showformula(B8) -> =RANDBETWEEN(1,6)
B9: =RANDBETWEEN(1,6) -> 5 | C9: die 3 | D9: =showformula(B9) -> =RANDBETWEEN(1,6)
B10: =RANDBETWEEN(1,6) -> 6 | C10: die 4 | D10: =showformula(B10) -> =RANDBETWEEN(1,6)
B11: =RANDBETWEEN(1,6) -> 3 | C11: die 5 | D11: =showformula(B11) -> =RANDBETWEEN(1,6)
B13: The =MAX(cell-range) function will show us the highest number appearing on the five
B14: faces:
B16: =MAX(B7:B11) -> 6 | C16: =showformula(B16) -> =MAX(B7:B11)
B18: We win in the event that the number above is a 5. The occurrence of an event can be
B19: "encoded" numerically, by using the value 0 to represent "No, it didn't occur," and
B20: using the value 1 to represent "Yes, it did occur." The Excel "=IF" function can be
B21: used to do the encoding:
B23: =IF(B16=5,1,0) -> 0 | C23: =showformula(B23) -> =IF(B16=5,1,0)
B25: In order to estimate the probability that the highest die shows a 5, we could now just hit
B26: the [F9] key many times, while watching the cell above, and keep track of the fraction of
B27: the time a 1 ("Yes!") shows up. This, of course, would be very tedious.

Sheet A tool
B1: A Simulation Tool
B3: Rather than hitting [F9] repeatedly and monitoring the results, we can let Excel do the
B4: "hitting [F9] and monitoring" for us. There are commercially-available Excel add-ins that
B5: will do this - and eventually, any decent spreadsheet program will incorporate this
B6: capability as a basic feature. To bridge the gap, I've developed a simple
B7: simulation-tracking tool that you can use for free.
B9: File / Open "KSim.xlsm". (If you get a "warning," please tell Excel that it's okay to let
B10: the sheet load and run.) It will open in another Excel window. Use the Window
B11: command at the top of the Excel screen to come back here.
B13: If all went well, the only difference you should now see is a new command at the top
B14: of the screen: Simulation. (If all didn't go well, check your Tools / Macro / Security
B15: setting: It must be set to either "Medium" or "Low.")

Sheet Test
B1: Running a Simulation
B3: Let's test the simulation tool by running a very simple simulation: We'll roll a single die
B4: repeateadly, and keep track of the average value showing on the top face.
B6: =RANDBETWEEN(1,6) -> 5 | C6: This is the top face from the current roll.
B8: Select Simulation / Run. You'll see a dialog box:
B10: Enter "10000" for the "number of runs," select cell
B11: B6 as the "cell to tabulate," and cell B14 as the
B12: "output range." Then hit "Run."
B21: Your results should look something like the | G21: $B$6 | H21: monitored cell
B22: results displayed to the right: | G22: 3.5082 | H22: mean
G23: 1.71948493 | H23: sample standard deviation
B24: The "mean" indicates the average of the values | G24: 1 | H24: minimum
B25: that appeared in cell B6 across 10,000 | G25: 6 | H25: maximum
B26: recalculations of this spreadsheet. It should | G26: 10000 | H26: number of simulation runs
B27: be close to 3.5, since the value of B6 varies
B28: between 1 and 6 with roughly-equal frequencies.

Sheet Margin of error
B1: The "Margin of Error" in an Estimate
B3: The simulated mean will vary from one | G3: $B$6 | H3: monitored cell
B4: simulation run to the next, depending on | G4: 3.5082 | H4: mean
B5: how the particular 10,000 rolls of the die | G5: 1.71948493 | H5: sample standard deviation
B6: turn out. How much trust can we put in this | G6: 1 | H6: minimum
B7: number as an estimate of the "true" mean? | G7: 6 | H7: maximum
G8: 10000 | H8: number of simulation runs
B9: We'll discuss this question in detail during
B10: the "statistics" portion of this course. For now, however, we'll borrow an answer at an
B11: intuitive level: I'd be willing, purely on the basis of this simulation, to state with 95%
B12: "confidence" that the estimate from the simulation is within
B13: =1.96*G5/SQRT(G8) -> 0.03370190462 | C13: of the true average. | H13: =showformula(B13) -> =1.96*G5/SQRT(G8)
B15: We'll derive this formula for the "margin of error" in an estimate later in our course:
B16: 1.96*s/sqrt(n), where s is the "sample standard deviation," and n is the "sample size"
B17: (the number of simulation runs).
B19: For now, just interpret it in this way: Purely on the basis of the simulation just
B20: conducted, I believe there's a 95% chance that the true average is somewhere
B21: between 3.5082 - 0.0337 = 3.4745 and 3.5082 + 0.0337 = 3.5419.
B23: I might have been unlucky, and - just by chance - have gotten a series of simulated rolls
B24: that makes my estimate wrong by more than this margin of error. However, not only is
B25: that unlikely (only 1 chance in 20), but - even when I'm unlucky - I'm typically not off by
B26: much more than this margin of error. (Again, we'll see why this is so later in this
B27: course.)

Sheet The 5-dice problem
B1: Solving the Original Problem (through Simulation)
B3: Here's the setup again: | H3: five dice are rolled
H4: =RANDBETWEEN(1,6) -> 6 | J4: =showformula(H4) -> =RANDBETWEEN(1,6)
B5: We'll now simulate 100,000 rolls of the five dice, and | H5: =RANDBETWEEN(1,6) -> 3 | J5: =showformula(H5) -> =RANDBETWEEN(1,6)
B6: track the average of the 0s and 1s (corresponding to | H6: =RANDBETWEEN(1,6) -> 1 | J6: =showformula(H6) -> =RANDBETWEEN(1,6)
B7: whether we lose or win). | H7: =RANDBETWEEN(1,6) -> 4 | J7: =showformula(H7) -> =RANDBETWEEN(1,6)
H8: =RANDBETWEEN(1,6) -> 3 | J8: =showformula(H8) -> =RANDBETWEEN(1,6)
B9: The average of the 0s and 1s, conveniently, will be the
B10: fraction of the time that we win! | H10: the largest of the five rolls
H11: =MAX(H4:H8) -> 6 | J11: =showformula(H11) -> =MAX(H4:H8)
B12: And here are the results:
H13: is the largest roll a 5?
B14: =ADDRESS(ROW($H$14),COLUMN($H$14)) -> $H$14 | C14: monitored cell | H14: =IF(H11=5,1,0) -> 0 | J14: =showformula(H14) -> =IF(H11=5,1,0)
B15: 0.26963 | C15: mean
B16: 0.4437697966 | C16: sample standard deviation
B17: 0 | C17: minimum
B18: 1 | C18: maximum
B19: 100000 | C19: number of simulation runs
B21: From our simulation, we estimate that the frequency - the PROBABILITY -
B22: of the event that we win is | E22: =B15 -> 0.26963 | F22: And we can be 95%-confident that
B23: our estimate is off by at most | E23: =1.96*B16/SQRT(B19) -> 0.002750513696 | G23: =showformula(E23) -> =1.96*B16/SQRT(B19)
B25: Recalling that the actual (computed analytically) probability is | H25: 0.2701903292 | I25: , we see
B26: that, in fact, we're off by only | E26: =H25-E22 -> 0.0005603292181 | F26: . And, of course, if we needed more
B27: precision, we could simply increase our sample size (i.e., the number of simulation runs).

Sheet Cubs
B1: Rooting for the Cubs
K2: From a Google search:
B3: The Chicago Cubs have three games left against the Houston Astros, and two against
B4: the St. Louis Cardinals. They need to win at least four of these games to clinch a playoff | K4: Can anyone tell me how this term came about? As far as I'm aware it's an American
B5: berth. Given how they've fared against these opponents earlier in the season, you feel | K5: term, and we would definitely not say this in Australia, as it would imply that you're
B6: there's a 50% chance of them winning any given game against the Astros, and a 55% | K6: having sex with someone for your team. So why the term 'root', when barracking for a
B7: chance of them winning any given game against the Cardinals. How likely is it that the | K7: team?
B8: Cubs will make the playoffs?
K9: The American Heritage Dictionary says "Perhaps from 'root,' to dig with the snout."
B10: Answer: Again, we could work this problem analytically. From the class notes on
B11: "Computing Probabilities," we find the answer: | K11: Merriam Webster says it may come from "rout."
K12: Main Entry: root (4)
B13: [3 ·(0.5)2 ·(0.5)] ·(0.55)2 + (0.5)3 ·[2 ·(0.55) ·(0.45)] + (0.5)3 ·(0.55)2 = 21.3125% | K13: Pronunciation: 'rüt also 'rut
K14: Function: intransitive verb
B15: But what if we failed to discover this formula? Simulation comes to our rescue! | K15: Etymology: perhaps alteration of rout (2)
B16: We can combine the =RAND() function with the =IF function to simulate the result of a | K16: Date: 1889
B17: game, using the encoding 1 = "Cubs win" and 0 = "Cubs lose." | K17: 1 : to noisily applaud or encourage a contestant or team : CHEER
K18: 2 : to wish the success of or lend support to someone or something
B19: =IF(RAND()<0.5,1,0) -> 0 | C19: =IF(RAND()<0.5,1,0)
B20: =IF(RAND()<0.5,1,0) -> 1 | C20: =IF(RAND()<0.5,1,0) | F20: games against the Astros
B21: =IF(RAND()<0.5,1,0) -> 0 | C21: =IF(RAND()<0.5,1,0)
B23: =IF(RAND()<0.55,1,0) -> 1 | C23: =IF(RAND()<0.55,1,0) | F23: games against the Cardinals
B24: =IF(RAND()<0.55,1,0) -> 1 | C24: =IF(RAND()<0.55,1,0)
B26: =SUM(B19:B24) -> 3 | C26: total number of Cubs victories | F26: =showformula(B26) -> =SUM(B19:B24)
B28: =IF(B26>=4,1,0) -> 0 | C28: 1 ("Yes") if the Cubs win at least 4 games, 0 ("No") otherise | I28: =showformula(B28) -> =IF(B26>=4,1,0)
B30: And now we use our simulation tool: | F30: =ADDRESS(ROW($B$28),COLUMN($B$28)) -> $B$28 | G30: monitored cell
F31: 0.21248 | G31: mean
B32: We estimate the probability that | F32: 0.4090646929 | G32: sample standard deviation
B33: the Cubs reach the playoffs to be | F33: 0 | G33: minimum
B34: =F31 -> 0.21248 | C34: , with a margin of error of | F34: 1 | G34: maximum
B35: =1.96*F32/SQRT(F35) -> 0.002535409234 | C35: (at the 95%-confidence level). | F35: 100000 | G35: number of simulation runs
B37: =showformula(B35) -> =1.96*F32/SQRT(F35)

Sheet Tossing coins
B1: Coin Tossing
B3: What's the probability of getting at least one head in the course of 5 coin tosses?
B4: What's the probability of getting precisely three heads?
B6: Try this yourself. Use five cells to represent the tosses of the coin - Set up the cells so
B7: that each is 1 if the coin comes up "heads," and 0 if it comes up "tails."
B9: Then, use the =SUM formula to count the "heads," and an =IF formula to check whether
B10: the number of heads is at least 1, and another =IF formula to see if the number is
B11: precisely 3.
B13: Finally, run the simulation tool, tracking the average values appearing in your two =IF
B14: cells. Pick whatever sample size (number of runs) you like but, when finished, do
B15: compute the margins of error (at the 95%-confidence level) for your two estimates.
B17: Hint: The actual probabilities, determined analytically, are
B18: =1-(0.5)^5 -> 0.96875 | C18: and | D18: =COMBIN(5,3)*0.5^3*(1-0.5)^2 -> 0.3125
B20: One way to set up the simulation appears on the next tab.

Sheet Coin-toss setup
B1: Coin-Toss Setup
D4: =IF(RAND()<0.5,1,0) -> 1 | E4: Toss #1 (0 = "Tails," 1 = "Heads") | I4: =showformula(D4) -> =IF(RAND()<0.5,1,0)
D5: =IF(RAND()<0.5,1,0) -> 1 | E5: Toss #2 | I5: =showformula(D5) -> =IF(RAND()<0.5,1,0)
D6: =IF(RAND()<0.5,1,0) -> 0 | E6: Toss #3 | I6: =IF(RAND()<0.5,1,0)
D7: =IF(RAND()<0.5,1,0) -> 1 | E7: Toss #4 | I7: =IF(RAND()<0.5,1,0)
D8: =IF(RAND()<0.5,1,0) -> 1 | E8: Toss #5 | I8: =IF(RAND()<0.5,1,0)
D10: =SUM(D4:D8) -> 4 | E10: number of "Heads" | I10: =SUM(D4:D8)
D12: =IF(D10>=1,1,0) -> 1 | E12: Is the number of "Heads" at least 1? | I12: =IF(D10>=1,1,0)
D13: =IF(D10=3,1,0) -> 0 | E13: Is the number of "Heads" 3? | I13: =IF(D10=3,1,0)

Sheet Summary
B1: Summary
B3: =IF(RAND()<p,1,0) | D3: simulates the occurrence of an event with probability p.
B5: =IF(RAND()<=p,1,0) | D5: does the same, since the probability that RAND() takes
D6: precisely the value p is 0.
B8: If a cell is 1 whenever an event A occurs, and 0 whenever A doesn't occur,
B9: then in the long run, the average of the values appearing in that cell will be
B10: an estimate of Pr(A).
B12: The precision of the estimate is indicated by the margin of error at the
B13: 95%-confidence level, 1.96*(sample standard deviation)/SQRT(n).
B15: This precision, when the original cell can only be 0 and 1, is
B16: 1.96*SQRT(estimate*(1-estimate))/SQRT(number of observations).

Sheet Combinations
B1: Counting Combinations | K1: Simulating an Evolving System
B3: Things tend to be counted in two ways: As sequences (in which order is important), | K3: When the underlying "state" of a random process changes over time, the performance of
B4: and as sets. Counting sequences is simple. If there are m ways to do one thing, | K4: the process over time can be simulated by keeping track of the actual state from one
B5: followed by n ways to do another, then there are mn ways to carry out the two tasks | K5: stage to the next.
B6: in sequence. In how many ways can a 5-card hand be dealt out (as in stud poker,
B7: where the order in which the cards are dealt is important)? 52∙51∙50∙49∙48 = | K7: Here, we'll track the number of socks remaining after each selection from the drawer.
B8: 311,875,200. (For every one of the 52 ways to start with card 1, there are 51 ways to
B9: continue with card 2, ...) | L9: contents of drawer | P9: selection
L10: blue | M10: brown | N10: black | O10: choice | P10: blue | Q10: brown | R10: black
B11: But how many 5-card hands are there? Obviously, every hand could be dealt out in | K11: stage 1 | L11: 10 | M11: 6 | N11: 8 | O11: =RANDBETWEEN(1,SUM(L11:N11)) -> 5 | P11: =IF(O11<=L11,1,0) -> 1 | Q11: =IF(AND(O11>L11,O11<=L11+M11),1,0) -> 0 | R11: =IF(O11>L11+M11,1,0) -> 0
B12: 5∙4∙3∙2∙1 = 120 different card-orders. So there are only 311,875,200 / 120 = 2,598,960 | K12: stage 2 | L12: =L11-P11 -> 9 | M12: =M11-Q11 -> 6 | N12: =N11-R11 -> 8 | O12: =RANDBETWEEN(1,SUM(L12:N12)) -> 7 | P12: =IF(O12<=L12,1,0) -> 1 | Q12: =IF(AND(O12>L12,O12<=L12+M12),1,0) -> 0 | R12: =IF(O12>L12+M12,1,0) -> 0
B13: different hands. | K13: total | P13: =P11+P12 -> 2 | Q13: =Q11+Q12 -> 0 | R13: =R11+R12 -> 0
B15: Standard notation: n! = 1∙2∙3∙...∙n ; the symbol "n!" is read as "n factorial". This gives | O15: =IF(MAX(P13:R13)=2,1,0) -> 1 | P15: is it a matching pair?
B16: the total number of ways of arranging n distinct items. The number of ways to select, | L16: =ADDRESS(ROW($O$15),COLUMN($O$15)) -> $O$15 | M16: monitored cell
B17: in order, k items from n, is n∙(n-1)∙...∙(n-k+1) = n!/(n-k)! . In our card example, the | L17: 0.31769 | M17: mean
B18: number of ways to deal out a 5-card hand was simply 52! / 47! . But if we only care | L18: 0.4655805318 | M18: sample standard deviation
B19: about different hands, and not the order in which the cards arrive, then we must take into | L19: 0 | M19: minimum
B20: account that each hand can be dealt out in 5! different ways, so there are really only | L20: 1 | M20: maximum
B21: 52! / (47!∙5!) different hands. | L21: 100000 | M21: number of simulation runs
B23: More standard notation: | L23: =1.96*L18/SQRT(L21) -> 0.002885698033 | M23: margin of error (at 95%-confidence)
B26: is the number of ways of choosing k distinct items from a set of n ; the symbol is read
B27: as "n choose k".
B29: Example: What is the probability of being dealt a "full house" (two cards of one rank,
B30: and three of another)? There are
B34: different full houses (13 ways to choose the pair-rank, and 6 ways to choose two cards,
B35: then 12 ways left to choose the triple-rank, and 4 ways to choose three cards). So the
B36: probability is a bit more than one chance in a thousand, i.e., 3,744 / 2,598,960 =
B37: =3744/2598960 -> 0.00144057623 | C37: .
B39: Example: I have 5 pairs of blue socks, 3 pairs of brown socks, and 4 pairs of black
B40: socks lying loose in my drawer. What's the chance that two randomly-selected socks
B41: (pulled out early in the morning, before my eyes are really open) will match?
B43: There are
B46: ways to pick a matching pair, and | J46: =88/276 -> 0.3188405797
B49: ways to pick some pair. Therefore, the probability of a matching pair
B50: is 88 / 276 = 0.3188 = 31.88% . (I'll match roughly every third day.)

Sheet Conditional probability
B1: Identifying the Culprit
B3: Recall the definition: Pr( B | A ) = Pr( A and B ) / Pr( A ).
B5: Estimating Conditional Probabilities via Simulation | K5: This goes beyond anything required in this class. I just wanted to
K6: illustrate that it can be done.
B7: A witness to a hit-and-run accident identifies the fleeing vehicle as a Ford.
B8: 20% of the vehicles in town are Fords. However, when shown a sample of
B9: photographs, the witness correctly identifies Fords only 90% of the time, and
B10: calls non-Fords Fords 30% of the time. How likely is it that the fleeing vehicle
B11: was actually a Ford?
B13: 0.2 | C13: cars which are Fords
B14: =1-B13 -> 0.8 | C14: car which aren't Fords
B16: 0.9 | C16: Pr( calls car a Ford | car is Ford )
B17: 0.3 | C17: Pr( calls car a Ford | car isn't Ford )
B20: =IF(RAND()<B13,"Ford","other") -> Ford | C20: =showformula(B20) -> =IF(RAND()<B13,"Ford","other") | K20: make of car seen fleeing | N20: (crucial assumption: car in hit-and-run is random car from town)
B21: =IF(B20="Ford",IF(RAND()<B16,"Ford","Other"),IF(RAND()<B17,"Ford","other")) -> Ford | C21: =showformula(B21) -> =IF(B20="Ford",IF(RAND()<B16,"Ford","Other"),IF(RAND()<B17,"Ford","other")) | K21: witness says
B23: =IF(AND(B20="Ford",B21="Ford"),1,0) -> 1 | C23: =showformula(B23) -> =IF(AND(B20="Ford",B21="Ford"),1,0) | G23: A and B | K23: make seen fleeing is Ford and witness says "Ford"
B24: =IF(B21="Ford",1,0) -> 1 | C24: =showformula(B24) -> =IF(B21="Ford",1,0) | G24: A | K24: witness says "Ford"
B26: =ADDRESS(ROW($B$23),COLUMN($B$23)) -> $B$23 | C26: =ADDRESS(ROW($B$24),COLUMN($B$24)) -> $B$24 | D26: monitored cell
B27: 0.18081 | C27: 0.42194 | D27: mean | H27: =B27/C27 -> 0.4285206427 | I27: =showformula(H27) -> =B27/C27 | K27: estimated conditional probability | N27: clearly
B28: 0.3848626055 | C28: 0.4938715172 | D28: sample standard deviation | H28: =SQRT(H27*(1-H27)) -> 0.4948643263 | I28: =showformula(H28) -> =SQRT(H27*(1-H27)) | K28: sample standard deviation | N28: trust me for now
B29: 0 | C29: 0 | D29: minimum | H29: 0 | I29: =showformula(H29) -> 0 | K29: minimum
B30: 1 | C30: 1 | D30: maximum | H30: 1 | I30: =showformula(H30) -> 1 | K30: maximum
B31: 100000 | C31: 100000 | D31: number of simulation runs | H31: =C27*C31 -> 42194 | I31: =showformula(H31) -> =C27*C31 | K31: number of simulation runs | N31: obvious
H33: =H27 -> 0.4285206427 | I33: estimated probability (was Ford | said "Ford")
H34: =1.96*H28/SQRT(H31) -> 0.004721900917 | I34: margin of error (at 95% confidence)

Sheet Fords
B1: Identifying the Culprit
B3: A witness to a hit-and-run accident identifies the fleeing vehicle as a Ford.
B4: 20% of the vehicles in town are Fords. However, when shown a sample of
B5: photographs, the witness correctly identifies Fords only 90% of the time, and
B6: calls non-Fords Fords 30% of the time. How likely is it that the fleeing vehicle
B7: was actually a Ford?
B9: 0.2 | C9: cars which are Fords
B10: =1-B9 -> 0.8 | C10: car which aren't Fords
B12: 0.9 | C12: Pr( calls car a Ford | car is Ford )
B13: 0.3 | C13: Pr( calls car a Ford | car isn't Ford )
B15: =+B9*B12 -> 0.18 | C15: Pr( car is a Ford and is called a Ford )
B16: =(1-B9)*B13 -> 0.24 | C16: Pr( car isn't a Ford and is called a Ford )
B18: =B15+B16 -> 0.42 | C18: Pr(car is called a Ford)
B20: =B15/B18 -> 0.4285714286 | C20: Pr( car is a Ford | it's called a Ford )
G22: is a Ford and is called a Ford
G26: is called a Ford

Sheet Adverse Selection (hidden)
B1: Adverse Selection
B3: Recall that my car was worth some amount, equally likely to be anywhere between $0
B4: and $500, to me, and was worth 50% more to you. The reality you were facing looked
B5: like this:
B7: =500*RAND() -> 124.3005661 | C7: =showformula(B7) -> =500*RAND() | E7: the (random) value of the car to me
B8: =1.5*B7 -> 186.4508492 | C8: =showformula(B8) -> =1.5*B7 | E8: the value of the car to you
B10: Let's say that you chose to offer me $200 for the car. Then your realized profit from the
B11: offer would have been
B13: 200 | C13: offer
B14: =IF(B13>=B7,1,0) -> 1 | C14: acceptance of offer by me (1 = "Yes," 0 = "No") | H14: =showformula(B14) -> =IF(B13>=B7,1,0)
B15: =B14*(B8-B13) -> -13.54915083 | C15: your profit | H15: =showformula(B15) -> =B14*(B8-B13)
B16: =IF(B14=1,B8-B13,0) -> -13.54915083 | C16: I could have also used this formula | H16: =showformula(B16) -> =IF(B14=1,B8-B13,0)
B18: What, on average, would you expect to profit from your offer? Let's simulate:
B20: Here, I've selected two cells to monitor. | F20: =ADDRESS(ROW($B$14),COLUMN($B$14)) -> $B$14 | G20: =ADDRESS(ROW($B$15),COLUMN($B$15)) -> $B$15 | H20: monitored cell
B21: This can be done by [Ctrl]-clicking first | F21: 0.39976 | G21: -19.83245979 | H21: mean
B22: one, and then the other. | F22: 0.4898513468 | G22: 60.01138591 | H22: sample standard deviation
F23: 0 | G23: -199.9849 | H23: minimum
B24: We estimate your chance of winning to be | F24: 1 | G24: 99.9983 | H24: maximum
B25: =F21 -> 0.39976 | C25: , with a margin of error of | F25: 100000 | G25: 100000 | H25: number of simulation runs
B26: =1.96*F22/SQRT(F25) -> 0.003036130103 | C26: . And your profit, on average, is
B27: =G21 -> -19.83245979 | C27: , with a margin of error of
B28: =1.96*G22/SQRT(G25) -> 0.3719544234 | C28: . The precise answers, derived
B29: analytically, are 40% and ($20).
